bitfinex/quotes_SOLUSD_20240622
["timestamp","ask_amount","ask_price","bid_price","bid_amount"]
[1719030980034,6.6402,135.3,135.22,13.8648]
[1719030980035,6.47,135.27,135.22,13.8648]
[1719030981431,20.34,135.29,135.23,13.8647]
[1719030981432,6.47,135.28,135.23,13.8647]
[1719030981631,0.17,135.27,135.23,13.8647]
[1719030984114,0.17,135.27,135.23,6.47]
[1719030985238,0.17,135.27,135.23,13.8647]
[1719030985821,0.17,135.28,135.23,13.8647]
[1719030988732,20.0,135.29,135.24,13.8642]
[1719030988935,6.6402,135.3,135.26,6.47]
[1719030989135,22.5235,135.32,135.27,6.47]
[1719030989331,20.0,135.31,135.27,6.47]
[1719030989533,20.0,135.31,135.26,13.8629]
[1719030989843,26.47,135.31,135.26,6.47]
[1719030990441,6.81,135.3,135.25,6.47]
[1719030990817,0.34,135.3,135.25,6.47]
[1719030991544,0.34,135.3,135.25,13.8636]
[1719030993539,0.34,135.3,135.26,6.47]
[1719030993738,0.17,135.3,135.26,6.47]
[1719030994041,0.17,135.3,135.26,13.8629]
[1719030994542,16.0535,135.32,135.28,6.47]
[1719030994734,16.0535,135.32,135.24,6.47]
[1719030994735,16.0535,135.32,135.29,6.47]
[1719030995045,16.0535,135.32,135.28,6.47]
[1719030995626,16.0535,135.32,135.27,13.8623]
[1719030997018,16.0535,135.32,135.28,7.3919]
[1719030997237,16.0535,135.32,135.28,13.8619]
[1719030997641,16.0535,135.32,135.29,7.3914]
[1719030998033,16.0535,135.32,135.29,13.8614]
[1719030999823,6.4585,135.33,135.29,13.8614]
[1719031000027,15.0757,135.35,135.32,6.47]
[1719031000228,6.4585,135.38,135.33,6.47]
[1719031000454,6.4585,135.38,135.34,7.3883]
[1719031000744,6.4585,135.38,135.33,13.859]
[1719031001860,6.4585,135.38,135.33,6.47]
[1719031002553,0.34,135.37,135.33,6.47]
[1719031003552,0.17,135.37,135.33,6.47]
[1719031003745,6.4585,135.38,135.34,13.8585]
[1719031003946,21.5457,135.39,135.34,13.8585]
[1719031007657,21.5457,135.39,135.34,6.47]
[1719031008165,15.0757,135.39,135.34,6.47]
[1719031010878,15.0757,135.39,135.34,13.8587]
[1719031011354,21.5457,135.39,135.34,6.47]
[1719031011554,0.34,135.38,135.34,6.47]
[1719031011761,6.81,135.38,135.33,6.47]
[1719031012569,6.81,135.38,135.32,7.3896]
[1719031012746,6.81,135.38,135.32,13.8596]
[1719031013540,6.81,135.38,135.33,7.3892]
[1719031015145,6.47,135.37,135.33,7.3892]
[1719031016565,6.81,135.38,135.33,13.8592]
[1719031016974,6.47,135.37,135.32,13.8596]
[1719031017265,0.34,135.36,135.31,13.8601]
[1719031017641,12.8604,135.36,135.3,7.3909]
[1719031017845,12.8604,135.36,135.3,13.8609]
[1719031018046,12.8604,135.36,135.31,6.47]
[1719031018353,6.3904,135.36,135.33,7.3892]
[1719031018667,6.3904,135.36,135.32,13.8596]
[1719031019768,6.3904,135.36,135.33,7.3892]
[1719031020975,6.3904,135.36,135.32,13.8596]
[1719031022357,6.2204,135.36,135.32,13.8596]
[1719031022676,27.5961,135.39,135.33,13.859]
[1719031022864,0.17,135.38,135.33,6.47]
[1719031023063,0.17,135.38,135.34,6.47]
[1719031023868,0.17,135.38,135.33,6.47]
[1719031024053,6.64,135.38,135.33,6.47]
[1719031024254,0.17,135.37,135.33,6.47]
[1719031024659,0.17,135.37,135.32,13.8596]
[1719031025376,0.17,135.37,135.33,7.3892]
[1719031025573,0.17,135.37,135.34,7.3887]
[1719031025764,0.17,135.38,135.34,7.3887]
[1719031025765,6.81,135.38,135.34,7.3887]
[1719031026168,0.34,135.38,135.34,7.3887]
[1719031027464,0.34,135.38,135.34,13.8587]
[1719031027674,0.34,135.38,135.34,7.3887]
[1719031027876,6.81,135.38,135.33,13.8591]
[1719031028175,6.81,135.38,135.33,13.8589]
[1719031029175,6.81,135.38,135.34,7.3886]
[1719031029374,0.34,135.38,135.34,7.3886]
[1719031029578,0.34,135.38,135.33,13.859]
[1719031030660,0.34,135.38,135.33,6.47]
[1719031030874,0.34,135.38,135.35,13.8577]
[1719031031880,15.0757,135.39,135.36,7.3876]
[1719031032588,15.0757,135.39,135.35,13.858]
[1719031032962,15.0757,135.39,135.36,7.3876]
[1719031036691,15.0757,135.39,135.35,13.8579]
[1719031036872,0.34,135.38,135.35,7.3879]
[1719031037269,0.34,135.38,135.34,13.8585]
[1719031038071,0.34,135.38,135.33,7.3892]
[1719031038377,6.81,135.38,135.33,7.3892]
[1719031038582,6.81,135.38,135.34,7.3887]
[1719031040287,0.34,135.38,135.34,7.3887]
[1719031040682,0.34,135.38,135.33,6.47]
[1719031041680,0.34,135.38,135.34,7.3884]
[1719031043972,0.34,135.38,135.33,13.8591]
[1719031044173,26.81,135.38,135.32,6.47]
[1719031044386,26.81,135.38,135.32,13.8594]
[1719031045999,26.81,135.38,135.33,7.3891]
[1719031049102,20.34,135.38,135.33,13.8591]
[1719031049509,26.81,135.38,135.33,13.8591]
[1719031049802,20.34,135.38,135.33,13.8591]
[1719031050504,20.0,135.38,135.36,7.3876]
[1719031050716,15.0757,135.39,135.36,7.3876]
[1719031050886,6.0801,135.41,135.37,7.3869]
[1719031051200,20.0,135.4,135.37,7.3869]
[1719031051381,6.0801,135.41,135.36,13.8574]
[1719031052504,0.17,135.4,135.36,13.8574]
[1719031053703,0.34,135.4,135.36,13.8574]
[1719031053889,0.34,135.4,135.36,6.47]
[1719031056107,0.34,135.4,135.35,13.8579]
[1719031063894,6.81,135.4,135.35,13.8579]
[1719031068106,6.81,135.4,135.36,7.3875]
[1719031068491,6.81,135.4,135.35,7.3881]
[1719031068690,6.81,135.4,135.35,13.8581]
[1719031070914,6.81,135.4,135.35,7.3881]
[1719031071097,6.47,135.38,135.34,7.3885]
[1719031071293,0.17,135.37,135.34,7.3885]
[1719031071495,0.34,135.37,135.34,7.3885]
[1719031072319,6.47,135.35,135.28,7.3916]
[1719031072613,6.47,135.33,135.28,7.3916]
[1719031072812,0.34,135.32,135.28,7.3916]
[1719031072988,0.34,135.32,135.27,13.8623]
[1719031073190,0.34,135.32,135.28,13.862]
[1719031073401,0.34,135.32,135.28,7.392]
[1719031073720,0.34,135.32,135.28,13.862]
[1719031077615,0.34,135.32,135.29,7.3914]
[1719031077812,0.34,135.32,135.29,13.8614]
[1719031078015,0.34,135.33,135.29,13.8614]
[1719031078618,0.17,135.33,135.3,7.3909]
[1719031078919,0.34,135.34,135.3,7.3909]
[1719031079810,0.34,135.34,135.29,13.8613]
[1719031081523,6.81,135.34,135.29,13.8613]
[1719031081726,0.34,135.34,135.3,13.8608]
[1719031082020,22.7103,135.36,135.3,13.8608]
[1719031082021,20.34,135.35,135.3,13.8608]
[1719031083019,6.47,135.34,135.24,25.88]
[1719031083228,0.34,135.33,135.27,7.3923]
[1719031083409,6.81,135.33,135.28,13.8619]
[1719031084113,6.81,135.33,135.28,7.3919]
[1719031084419,6.81,135.33,135.27,13.8623]
[1719031085025,6.81,135.33,135.28,7.392]
[1719031085204,6.81,135.33,135.27,7.3924]
[1719031085407,6.81,135.33,135.28,7.3919]
[1719031085607,0.17,135.33,135.24,25.88]
[1719031085805,26.47,135.35,135.3,7.3906]
[1719031086304,26.47,135.35,135.29,6.47]
[1719031086305,26.47,135.35,135.29,13.8612]
[1719031086516,6.47,135.34,135.29,13.8612]
[1719031088234,6.47,135.34,135.3,7.3908]
[1719031088414,20.34,135.35,135.3,7.3908]
[1719031088415,26.81,135.35,135.3,13.8608]
[1719031088721,0.34,135.34,135.3,13.8608]
[1719031089132,0.34,135.34,135.3,6.47]
[1719031092022,0.34,135.34,135.3,13.8609]
[1719031092611,0.34,135.34,135.3,7.3909]
[1719031096834,0.34,135.34,135.3,13.8609]
[1719031097034,0.34,135.34,135.3,7.3909]
[1719031102818,0.34,135.35,135.3,7.3909]
[1719031103020,6.81,135.35,135.3,7.3909]
[1719031106231,6.81,135.35,135.31,7.3904]
[1719031107029,0.34,135.35,135.31,7.3904]
[1719031107936,22.7103,135.36,135.32,6.47]
[1719031108740,22.7103,135.36,135.32,13.8597]
[1719031109439,2.48498009,135.37,135.33,13.859]
[1719031109622,2.14498009,135.37,135.33,13.8589]
[1719031109827,20.0,135.39,135.34,6.47]
[1719031109828,26.47,135.39,135.34,6.47]
[1719031111021,0.34,135.38,135.34,6.47]
[1719031111321,0.34,135.38,135.33,13.8589]
[1719031114121,20.0,135.39,135.34,13.8587]
[1719031114317,22.8538,135.4,135.35,13.8582]
[1719031114522,0.34,135.39,135.35,13.8582]
[1719031115625,0.34,135.39,135.35,7.3882]
[1719031115827,0.34,135.39,135.35,6.47]
[1719031118327,22.5138,135.4,135.35,6.47]
[1719031118328,16.0438,135.4,135.35,13.8581]
[1719031118534,16.0438,135.4,135.36,6.47]
[1719031121329,16.0438,135.4,135.31,25.88]
[1719031121534,0.34,135.39,135.35,6.47]
[1719031124352,0.34,135.39,135.35,13.8582]
[1719031127635,0.17,135.39,135.35,13.8582]
[1719031127959,16.0438,135.4,135.35,13.8582]
[1719031128164,16.0438,135.4,135.36,7.3876]
[1719031129563,16.0438,135.4,135.35,13.858]
[1719031133653,0.17,135.39,135.31,25.88]
[1719031133977,6.81,135.39,135.33,6.47]
[1719031134663,6.81,135.39,135.33,13.859]
[1719031135969,6.81,135.39,135.34,7.3885]
[1719031136837,0.34,135.39,135.35,7.3881]
[1719031137346,0.34,135.39,135.35,13.8581]
[1719031139258,16.0438,135.4,135.35,13.8581]
[1719031139467,16.0438,135.4,135.36,6.47]
[1719031140455,16.0438,135.4,135.35,13.8581]
[1719031141059,16.0438,135.4,135.35,7.3881]
[1719031141272,16.0438,135.4,135.35,6.47]
[1719031141454,22.5138,135.4,135.34,13.8585]
[1719031142980,6.47,135.39,135.34,6.47]
[1719031143177,0.17,135.38,135.34,6.47]
[1719031143482,16.0438,135.4,135.31,7.3901]
[1719031143692,16.0438,135.4,135.37,7.3868]
[1719031143983,16.0438,135.4,135.37,6.47]
[1719031144361,16.0438,135.4,135.36,6.47]
[1719031145076,16.0438,135.4,135.35,6.47]
[1719031145302,0.34,135.39,135.34,7.3886]
[1719031145475,0.34,135.39,135.35,6.47]
[1719031145678,16.0438,135.4,135.35,6.47]
[1719031146007,0.17,135.39,135.34,7.3883]
[1719031146190,0.34,135.39,135.35,6.47]
[1719031146982,0.34,135.39,135.35,13.8582]
[1719031147576,0.34,135.39,135.31,25.88]
[1719031147577,0.34,135.39,135.36,13.8576]
[1719031147903,0.34,135.39,135.35,7.388]
[1719031148109,0.34,135.39,135.35,13.858]
[1719031148319,0.34,135.39,135.35,6.47]
[1719031149306,0.34,135.39,135.35,13.8581]
[1719031150503,0.34,135.39,135.35,7.3881]
[1719031152683,0.34,135.39,135.36,7.3875]
[1719031154488,16.0438,135.4,135.38,7.3865]
[1719031158383,16.0438,135.4,135.29,15.6606]
[1719031158586,0.17,135.39,135.36,6.47]
[1719031158814,0.34,135.39,135.36,6.47]
[1719031159898,0.34,135.39,135.36,13.8575]
[1719031160105,0.34,135.39,135.36,6.47]
[1719031160330,0.34,135.39,135.35,7.3881]
[1719031160529,0.34,135.39,135.36,6.47]
[1719031163320,0.34,135.39,135.36,7.3876]
[1719031163502,0.34,135.39,135.36,6.47]
[1719031164327,0.34,135.39,135.36,13.8576]
[1719031164698,0.34,135.39,135.34,7.3885]
[1719031164900,6.81,135.39,135.33,6.47]
[1719031165630,6.81,135.39,135.33,13.8589]
[1719031166434,6.47,135.38,135.29,15.6606]
[1719031166735,0.34,135.37,135.33,6.47]
[1719031167321,0.17,135.36,135.33,6.47]
[1719031167622,0.34,135.38,135.32,6.47]
[1719031167837,6.81,135.38,135.33,6.47]
[1719031168222,0.34,135.38,135.33,6.47]
[1719031168726,0.34,135.38,135.34,7.3886]
[1719031168917,0.17,135.38,135.34,6.47]
[1719031169613,0.17,135.38,135.35,7.3879]
[1719031170254,0.34,135.38,135.35,7.3879]
[1719031171316,0.17,135.38,135.36,7.3876]
[1719031171634,16.0438,135.4,135.37,7.387]
[1719031171838,16.0438,135.4,135.37,13.857]
[1719031172527,16.0438,135.4,135.37,7.387]
[1719031173813,16.0438,135.4,135.36,13.8574]
[1719031174138,0.17,135.39,135.35,6.47]
[1719031174349,0.34,135.39,135.35,13.8578]
[1719031174512,0.34,135.39,135.36,6.47]
[1719031177148,16.0438,135.4,135.36,13.8576]
[1719031177714,16.0438,135.4,135.36,6.47]
[1719031177915,16.0438,135.4,135.35,7.388]
[1719031178158,16.0438,135.4,135.36,6.47]
[1719031178655,16.0438,135.4,135.35,13.858]
[1719031178852,0.17,135.39,135.34,7.3885]
[1719031179151,0.17,135.39,135.35,6.47]
[1719031179152,0.34,135.39,135.35,6.47]
[1719031180461,0.34,135.39,135.35,13.8582]
[1719031182961,0.34,135.39,135.36,7.3876]
[1719031186155,0.34,135.39,135.35,7.388]
[1719031186356,0.34,135.39,135.35,13.858]
[1719031187331,0.34,135.39,135.35,7.388]
[1719031187543,0.34,135.39,135.35,13.858]
[1719031188530,0.34,135.39,135.35,7.388]
[1719031188730,0.34,135.39,135.35,13.858]
[1719031189160,0.34,135.39,135.35,7.388]
[1719031189333,0.34,135.39,135.34,13.8585]
[1719031190131,0.34,135.39,135.35,7.3881]
[1719031192344,0.34,135.39,135.36,7.3875]
[1719031193274,0.34,135.39,135.35,7.388]
[1719031194751,6.81,135.39,135.35,7.388]
[1719031194953,0.34,135.39,135.35,7.388]
[1719031195147,6.81,135.39,135.35,7.388]
[1719031197082,0.34,135.39,135.36,7.3876]
[1719031200256,0.34,135.39,135.34,6.47]
[1719031200574,0.34,135.39,135.35,7.3879]
[1719031202576,0.34,135.39,135.36,7.3875]
[1719031204482,0.34,135.39,135.31,6.47]
[1719031204654,6.47,135.38,135.33,6.47]
[1719031204859,22.5775,135.36,135.26,16.258]
[1719031205177,20.17,135.35,135.31,6.47]
[1719031205382,0.17,135.35,135.31,13.8603]
[1719031205565,0.34,135.35,135.31,13.8603]
[1719031206170,0.34,135.35,135.31,7.3903]
[1719031206375,0.34,135.35,135.31,13.8603]
[1719031206776,6.81,135.35,135.26,16.258]
[1719031207053,0.34,135.35,135.3,6.47]
[1719031207275,0.34,135.35,135.3,7.3908]
[1719031207490,0.34,135.35,135.31,6.47]
[1719031207652,6.81,135.35,135.3,6.47]
[1719031208272,0.34,135.35,135.3,13.8609]
[1719031208462,6.81,135.35,135.31,7.3902]
[1719031208665,0.34,135.35,135.31,13.8602]
[1719031208966,0.34,135.35,135.31,6.47]
[1719031209685,0.34,135.35,135.31,13.8603]
[1719031210255,16.1075,135.36,135.32,13.8596]
[1719031210461,16.1075,135.36,135.32,7.3896]
[1719031210777,16.1075,135.36,135.32,6.47]
[1719031211760,16.1075,135.36,135.32,13.8598]
[1719031211963,16.1075,135.36,135.32,6.47]
[1719031212286,0.34,135.35,135.32,6.47]
[1719031213483,0.34,135.35,135.31,13.8603]
[1719031215483,0.34,135.35,135.31,6.47]
[1719031216178,0.34,135.35,135.32,6.47]
[1719031216865,6.2546,135.37,135.33,6.47]
[1719031217074,6.2546,135.37,135.34,6.47]
[1719031217583,22.9429,135.39,135.34,6.47]
[1719031217910,16.4729,135.39,135.35,6.47]
[1719031218983,0.34,135.38,135.35,6.47]
[1719031221892,0.34,135.38,135.34,6.47]
[1719031222086,0.34,135.38,135.29,6.5494]
[1719031222300,6.47,135.37,135.32,6.47]
[1719031222504,0.34,135.36,135.32,6.47]
[1719031223513,0.34,135.36,135.31,6.47]
[1719031223685,6.81,135.36,135.3,6.47]
[1719031223890,6.81,135.36,135.31,6.47]
[1719031226001,6.81,135.36,135.31,13.8603]
[1719031228020,0.34,135.36,135.31,13.8603]
[1719031228817,0.34,135.36,135.32,13.8597]
[1719031229220,6.4576,135.37,135.33,7.3893]
[1719031229410,6.4576,135.37,135.34,13.8587]
[1719031229617,6.4576,135.37,135.34,6.47]
[1719031230320,6.4576,135.37,135.33,6.47]
[1719031230707,0.17,135.36,135.33,13.8593]
[1719031231826,6.4576,135.37,135.33,13.8593]
[1719031234047,0.34,135.38,135.34,6.47]
[1719031234216,16.4729,135.39,135.35,13.8581]
[1719031234620,16.4729,135.39,135.35,6.47]
[1719031234819,22.9429,135.39,135.34,13.8586]
[1719031235022,16.4729,135.39,135.34,13.8586]
[1719031235236,16.4729,135.39,135.35,6.47]
[1719031235408,0.34,135.38,135.35,6.47]
[1719031236235,0.34,135.38,135.34,7.3886]
[1719031236407,0.34,135.38,135.34,13.8586]
[1719031238242,0.34,135.38,135.35,6.47]
[1719031238623,0.34,135.38,135.35,13.8581]
[1719031238815,16.4729,135.39,135.36,13.8573]
[1719031242073,16.4729,135.39,135.36,7.3873]
[1719031246875,16.4729,135.39,135.35,13.8579]
[1719031249778,16.4729,135.39,135.35,7.3879]
[1719031249987,16.4729,135.39,135.36,6.47]
[1719031251686,0.17,135.38,135.32,7.3896]
[1719031251872,6.81,135.38,135.33,6.47]
[1719031252788,6.47,135.37,135.31,7.3902]
[1719031252968,0.34,135.36,135.32,6.47]
[1719031253688,0.34,135.36,135.32,13.8598]
[1719031256890,0.34,135.36,135.32,7.3898]
[1719031257196,0.34,135.36,135.32,13.8598]
[1719031260270,0.34,135.36,135.32,7.3898]
[1719031260468,0.34,135.36,135.32,6.47]
[1719031260693,6.7778,135.36,135.26,22.8578]
[1719031260867,21.582,135.35,135.26,22.8578]
[1719031261062,0.34,135.34,135.3,6.47]
[1719031261578,0.34,135.34,135.28,7.3917]
[1719031261818,0.34,135.34,135.29,6.47]
[1719031262103,0.34,135.34,135.28,7.3917]
[1719031262303,6.81,135.34,135.29,6.47]
[1719031262727,6.81,135.34,135.29,13.8614]
[1719031263032,6.81,135.34,135.29,6.47]
[1719031263750,6.81,135.34,135.29,13.8612]
[1719031266313,0.34,135.34,135.29,13.8612]
[1719031266632,0.34,135.34,135.3,13.8608]
[1719031268117,0.34,135.34,135.3,6.47]
[1719031269430,0.34,135.34,135.3,13.8609]
[1719031271148,0.34,135.34,135.3,6.47]
[1719031290769,0.34,135.34,135.29,13.8612]
[1719031297576,6.47,135.33,135.23,21.6215]
[1719031297778,0.34,135.32,135.28,6.47]
[1719031298882,0.34,135.32,135.28,13.862]
[1719031299084,0.34,135.32,135.28,7.392]
[1719031299256,0.34,135.32,135.28,13.862]
[1719031300878,6.47,135.33,135.28,13.862]
[1719031301181,6.47,135.34,135.29,13.8615]
[1719031301371,0.17,135.33,135.29,13.8615]
[1719031301567,6.47,135.34,135.3,7.3909]
[1719031303678,6.47,135.34,135.29,13.8612]
[1719031309067,15.112,135.35,135.24,25.88]
[1719031309273,15.112,135.35,135.31,6.47]
[1719031309673,15.112,135.35,135.3,13.8607]
[1719031309874,21.582,135.35,135.3,13.8607]
[1719031311393,0.17,135.34,135.3,7.3907]
[1719031313389,0.17,135.34,135.29,13.8613]
[1719031313592,0.34,135.34,135.3,7.3909]
[1719031314397,0.34,135.34,135.29,13.8614]
[1719031316776,0.34,135.34,135.3,7.3906]
[1719031317179,15.112,135.35,135.31,7.3901]
[1719031317492,15.112,135.35,135.3,7.3909]
[1719031318403,0.17,135.34,135.3,7.3909]
[1719031318589,0.34,135.34,135.3,7.3909]
[1719031325278,21.5081,135.32,135.23,21.6215]
[1719031325483,21.5081,135.32,135.24,13.8638]
[1719031325484,6.47,135.29,135.24,13.8638]
[1719031325908,6.47,135.28,135.24,7.3938]
[1719031326201,6.47,135.29,135.23,7.3945]
[1719031326391,0.34,135.31,135.2,6.1989]
[1719031326392,6.47,135.27,135.22,13.8652]
[1719031328310,6.47,135.27,135.23,7.3947]
[1719031329897,0.34,135.28,135.23,7.3947]
[1719031330098,26.81,135.28,135.24,7.3942]
[1719031330302,6.81,135.28,135.24,7.3942]
[1719031332110,6.81,135.28,135.23,13.8645]
[1719031333726,6.81,135.28,135.23,7.3945]
[1719031336424,6.47,135.27,135.23,7.3945]
[1719031338722,6.47,135.25,135.21,7.3956]
[1719031340108,6.47,135.26,135.21,13.8656]
[1719031340519,6.47,135.26,135.22,7.3952]
[1719031346417,15.1794,135.27,135.22,7.3952]
[1719031346620,6.47,135.26,135.22,7.3952]
[1719031348142,6.47,135.26,135.21,13.8656]
[1719031348943,6.47,135.25,135.21,7.3956]
[1719031349623,6.47,135.25,135.22,7.3951]
[1719031350940,6.47,135.26,135.23,7.3947]
[1719031353642,6.47,135.26,135.22,7.3951]
[1719031358241,15.1794,135.27,135.22,7.3951]
[1719031358539,6.47,135.26,135.22,7.3951]
[1719031364142,6.47,135.26,135.21,13.8657]
[1719031364444,6.47,135.24,135.19,13.8666]
[1719031364939,0.17,135.25,135.19,7.3966]
[1719031365239,6.47,135.23,135.2,7.3964]
[1719031365444,6.47,135.24,135.2,7.3964]
[1719031366413,6.47,135.23,135.19,7.3967]
[1719031367340,6.47,135.23,135.2,7.3963]
[1719031369959,6.47,135.23,135.19,7.3967]
[1719031375549,6.47,135.23,135.18,13.8672]
[1719031378263,6.47,135.23,135.19,7.3968]
[1719031393768,15.3506,135.22,135.18,7.3972]
[1719031393976,21.8206,135.22,135.18,7.3972]
[1719031402273,6.47,135.19,135.07,38.0084]
[1719031402473,6.47,135.18,135.12,7.4003]
[1719031402779,6.47,135.16,135.11,13.8713]
[1719031402956,6.81,135.17,135.11,13.8713]
[1719031403458,6.47,135.16,135.11,13.8713]
[1719031404085,6.47,135.16,135.11,6.47]
[1719031404385,6.81,135.15,135.09,7.402]
[1719031404571,6.81,135.15,135.09,13.872]
[1719031405678,6.81,135.15,135.09,7.402]
[1719031405882,6.81,135.15,135.1,7.4019]
[1719031406263,0.34,135.15,135.1,7.4019]
[1719031406465,6.47,135.15,135.1,13.8719]
[1719031408494,6.47,135.15,135.1,7.4019]
[1719031408671,0.34,135.14,135.1,7.4019]
[1719031409274,6.81,135.14,135.06,6.4134]
[1719031409484,6.81,135.14,135.09,6.47]
[1719031410266,6.81,135.14,135.04,15.0954]
[1719031410492,26.47,135.13,135.08,6.47]
[1719031410792,26.47,135.13,135.08,13.8729]
[1719031411101,26.47,135.13,135.08,7.4029]
[1719031411265,26.47,135.13,135.08,13.8729]
[1719031411767,41.5592,135.13,135.08,7.4029]
[1719031412691,6.47,135.12,135.08,7.4029]
[1719031415702,41.5592,135.13,135.08,7.4029]
[1719031416994,6.64,135.12,135.08,7.4029]
[1719031418402,0.17,135.12,135.08,7.4029]
[1719031418703,6.81,135.12,135.08,7.4029]
[1719031421987,0.17,135.12,135.08,7.4029]
[1719031422193,6.64,135.12,135.08,7.4029]
[1719031424975,6.47,135.12,135.08,7.4029]
[1719031425182,15.0892,135.13,135.11,13.8709]
[1719031425378,6.0147,135.16,135.04,15.0954]
[1719031425379,6.0147,135.16,135.12,13.8705]
[1719031425585,6.0147,135.16,135.13,7.4002]
[1719031425784,6.0147,135.16,135.12,13.8705]
[1719031425997,6.0147,135.16,135.13,7.3999]
[1719031427805,6.0147,135.16,135.12,13.8706]
[1719031429105,6.0147,135.16,135.12,7.4006]
[1719031429281,6.0147,135.16,135.12,13.8706]
[1719031429788,6.0147,135.16,135.11,7.4011]
[1719031429991,6.0147,135.16,135.11,13.8711]
[1719031430599,12.4847,135.16,135.11,13.8711]
[1719031431804,6.0147,135.16,135.11,13.8711]
[1719031432784,6.0147,135.16,135.12,6.47]
[1719031436180,6.0147,135.16,135.1,7.4016]
[1719031436382,12.4847,135.16,135.11,6.47]
[1719031436987,23.72238311,135.21,135.11,21.7469]
[1719031437189,20.0,135.2,135.15,6.47]
[1719031437715,26.47,135.2,135.15,6.47]
[1719031438724,26.47,135.2,135.15,13.8691]
[1719031439005,20.0,135.2,135.16,13.8683]
[1719031442096,26.47,135.2,135.11,15.2769]
[1719031442393,0.17,135.19,135.15,6.47]
[1719031443313,0.17,135.19,135.14,7.3994]
[1719031443493,0.17,135.19,135.15,6.47]
[1719031444208,6.81,135.19,135.14,13.8695]
[1719031445507,0.34,135.19,135.15,6.47]
[1719031450296,0.34,135.19,135.13,7.4]
[1719031450503,0.34,135.19,135.14,13.8695]
[1719031451188,0.34,135.19,135.13,7.4]
[1719031451392,0.34,135.19,135.14,6.47]
[1719031451801,6.81,135.19,135.14,6.47]
[1719031452302,6.81,135.19,135.08,15.5496]
[1719031452303,6.47,135.17,135.08,15.5496]
[1719031452495,26.4783,135.18,135.12,6.47]
[1719031452701,26.4783,135.18,135.15,7.3988]
[1719031452702,6.4783,135.18,135.15,7.3988]
[1719031452899,6.4783,135.18,135.15,13.8688]
[1719031453311,6.4783,135.18,135.15,6.47]
[1719031455104,6.4783,135.18,135.15,13.869]
[1719031457018,6.4783,135.18,135.15,6.47]
[1719031459534,6.4783,135.18,135.14,6.47]
[1719031459714,6.4783,135.18,135.15,6.47]
[1719031459922,6.4783,135.18,135.14,13.8693]